fUST/lending_fUST_20250912
["ID","MTS","AMOUNT","RATE_DAILY","PERIOD"]
[385196159,1757681458733,-151.0,0.00015068,2]
[385196160,1757681458743,-151.0,0.00015068,2]
[385196161,1757681458751,-480.0,0.00015068,2]
[385196162,1757681458760,-480.0,0.00015068,2]
[385196163,1757681458769,-151.0,0.00015068,2]
[385196164,1757681458778,-151.0,0.00015068,2]
[385196165,1757681458787,-151.0,0.00015068,2]
[385196166,1757681458796,-151.0,0.00015068,2]
[385196167,1757681458806,-155.853016,0.00015068,2]
[385196168,1757681458814,-454.6320539,0.00015068,2]
[385196169,1757681458823,-174.589064,0.00015068,2]
[385196170,1757681458834,-155.904354,0.00015068,2]
[385196171,1757681458843,-480.0,0.00015068,2]
[385196172,1757681458852,-480.0,0.00015068,2]
[385196173,1757681458861,-480.0,0.00015068,2]
[385196174,1757681458870,-480.0,0.00015068,2]
[385196175,1757681458879,-192.89126168,0.00015068,2]
[385196176,1757681458889,-480.0,0.00015068,2]
[385196177,1757681458899,-480.0,0.00015068,2]
[385196178,1757681458908,-490.52124139,0.00015068,2]
[385196179,1757681458917,-480.0,0.00015068,2]
[385196180,1757681458926,-480.0,0.00015068,2]
[385196181,1757681458935,-480.0,0.00015068,2]
[385196182,1757681458945,-480.0,0.00015068,2]
[385196183,1757681458954,-480.0,0.00015068,2]
[385196184,1757681458973,-480.0,0.00015068,2]
[385196185,1757681458984,-482.74554229,0.00015068,2]
[385196186,1757681458994,-480.0,0.00015068,2]
[385196187,1757681459004,-454.362742,0.00015068,2]
[385196188,1757681459013,-480.0,0.00015068,2]
[385196189,1757681459023,-480.0,0.00015068,2]
[385196190,1757681459032,-480.0,0.00015068,2]
[385196191,1757681459042,-410.24646868,0.00015068,2]
[385196192,1757681459051,-480.0,0.00015068,2]
[385196193,1757681459060,-480.0,0.00015068,2]
[385196194,1757681459071,-480.0,0.00015068,2]
[385196195,1757681459080,-480.0,0.00015068,2]
[385196196,1757681459090,-289.67143945,0.00015068,2]
[385196197,1757681459100,-480.0,0.00015068,2]
[385196198,1757681459109,-480.0,0.00015068,2]
[385196199,1757681459119,-480.0,0.00015068,2]
[385196200,1757681459128,-480.0,0.00015068,2]
[385196201,1757681459138,-286.66,0.00015068,2]
[385196202,1757681459147,-480.0,0.00015068,2]
[385196203,1757681459157,-184.052473,0.00015068,2]
[385196204,1757681459166,-1000.0,0.00015316,2]
[385196205,1757681459175,-500.0,0.00015316,2]
[385196206,1757681459185,-720.0,0.0001534,2]
[385196207,1757681459194,-551.22779104,0.00015342,2]
[385196208,1757681459204,-480.0,0.00015342,2]
[385196209,1757681459214,-480.0,0.00015342,2]
[385196210,1757681459225,-480.0,0.00015342,2]
[385196211,1757681459235,-480.0,0.00015342,2]
[385196212,1757681459245,-480.0,0.00015342,2]
[385196213,1757681459255,-480.0,0.00015342,2]
[385196214,1757681459264,-480.0,0.00015342,2]
[385196215,1757681459274,-480.0,0.00015342,2]
[385196216,1757681459284,-422.59115298,0.00015342,2]
[385196217,1757681459401,-151.0,0.00015342,2]
[385196218,1757681459411,-151.0,0.00015342,2]
[385196219,1757681459422,-151.0,0.00015342,2]
[385196220,1757681459431,-151.0,0.00015342,2]
[385196221,1757681459440,-153.54391,0.00015342,2]
[385196222,1757681459448,-151.0,0.00015342,2]
[385196223,1757681459458,-151.0,0.00015342,2]
[385196224,1757681459466,-151.0,0.00015342,2]
[385196225,1757681459475,-151.0,0.00015342,2]
[385196226,1757681459484,-151.0,0.00015342,2]
[385196227,1757681459494,-151.0,0.00015342,2]
[385196228,1757681459504,-480.0,0.00015342,2]
[385196229,1757681459514,-480.0,0.00015342,2]
[385196230,1757681459523,-480.0,0.00015342,2]
[385196231,1757681459533,-480.0,0.00015342,2]
[385196232,1757681459542,-261.42,0.00015342,2]
[385196233,1757681459552,-480.0,0.00015342,2]
[385196234,1757681459567,-480.0,0.00015342,2]
[385196235,1757681459576,-480.0,0.00015342,2]
[385196236,1757681459586,-305.01823303,0.00015342,2]
[385196237,1757681459595,-480.0,0.00015342,2]
[385196238,1757681459604,-480.0,0.00015342,2]
[385196239,1757681459614,-480.0,0.00015342,2]
[385196240,1757681459623,-480.0,0.00015342,2]
[385196241,1757681459633,-480.0,0.00015342,2]
[385196242,1757681459643,-480.0,0.00015342,2]
[385196243,1757681459652,-480.0,0.00015342,2]
[385196244,1757681459662,-490.33,0.00015342,2]
[385196245,1757681459671,-259.999999,0.00015616,2]
[385196246,1757681459681,-480.0,0.00015616,2]
[385196247,1757681459690,-480.0,0.00015616,2]
[385196248,1757681459699,-480.0,0.00015616,2]
[385196249,1757681459709,-480.0,0.00015616,2]
[385196250,1757681459718,-480.0,0.00015616,2]
[385196251,1757681459727,-480.0,0.00015616,2]
[385196252,1757681459737,-480.0,0.00015616,2]
[385196253,1757681459746,-480.0,0.00015616,2]
[385196254,1757681459757,-480.0,0.00015616,2]
[385196255,1757681459766,-480.0,0.00015616,2]
[385196256,1757681459776,-587.0,0.00015865,2]
[385196257,1757681459785,-496.28041285,0.0001589,2]
[385196258,1757681459794,-480.0,0.0001589,2]
[385196259,1757681459805,-480.0,0.0001589,2]
[385196260,1757681459815,-518.13,0.0001589,2]
[385196261,1757681459824,-480.0,0.0001589,2]
[385196262,1757681459833,-1216.0,0.00015968,2]
[385196263,1757681459842,-509.24,0.00016164,2]
[385196264,1757681459851,-480.0,0.00016164,2]
[385196265,1757681459860,-155.0,0.00016436,2]
[385196266,1757681459870,-480.0,0.00016438,2]
[385196267,1757681459879,-480.0,0.00016712,2]
[385196268,1757681459888,-864.0,0.00016873,2]
[385196269,1757681459897,-480.0,0.00016986,2]
[385196270,1757681459906,-480.0,0.0001726,2]
[385196271,1757681459915,-823.0,0.00017396,2]
[385196272,1757681459925,-480.0,0.00017534,2]
[385196273,1757681459934,-480.0,0.00017808,2]
[385196274,1757681459943,-480.0,0.00018082,2]
[385196275,1757681459952,-480.0,0.00018356,2]
[385196276,1757681459961,-480.0,0.0001863,2]
[385196277,1757681459971,-430.99810065,0.0001877,2]
[385196278,1757681459980,-486.79,0.00018904,2]
[385196279,1757681459990,-870.0,0.00019073,2]
[385196280,1757681459999,-3271.53977038,0.00019149,2]
[385196281,1757681460008,-480.0,0.00019178,2]
[385196282,1757681460018,-480.0,0.00019178,2]
[385196283,1757681460028,-480.0,0.00019178,2]
[385196284,1757681460038,-480.0,0.00019178,2]
[385196285,1757681460048,-1941.80269725,0.000199,2]
[385196286,1757681460058,-4000.0,0.0002,4]
[385196287,1757681460068,-936.424658,0.00020187,2]
[385196288,1757681460078,-1941.80269697,0.00020299,2]
[385196289,1757681460088,-1000.0,0.00020417,20]
[385196290,1757681460097,-244.0,0.00020417,20]
[385196291,1757681460106,-271.768315,0.00020548,2]
[385196292,1757681460116,-1941.80269697,0.00020699,2]
[385196293,1757681460126,-1941.80269697,0.00021098,2]
[385196294,1757681460135,-1941.80269697,0.00021498,2]
[385196295,1757681460145,-1941.80269697,0.00021897,2]
[385196296,1757681460154,-8008.25,0.00022,7]
[385196297,1757681460164,-3219.59,0.00022,7]
[385196298,1757681460173,-98918.45,0.00022,7]
[385196299,1757681460183,-160.0,0.00022,7]
[385196300,1757681460194,-151.0,0.00022,7]
[385196301,1757681460204,-151.0,0.00022,7]
[385196302,1757681460214,-151.0,0.00022,7]
[385196303,1757681460224,-151.789915,0.00022,7]
[385196304,1757681460234,-151.0,0.00022,7]
[385196305,1757681460244,-151.0,0.00022,7]
[385196306,1757681460253,-151.0,0.00022,7]
[385196307,1757681460263,-242.718032,0.00022,7]
[385196308,1757681460273,-242.718032,0.00022,7]
[385196309,1757681460283,-242.718032,0.00022,7]
[385196310,1757681460293,-242.718032,0.00022,7]
[385196311,1757681460304,-151.0,0.00022,7]
[385196312,1757681460314,-395.53037,0.00022,7]
[385196313,1757681460324,-395.53037,0.00022,7]
[385196314,1757681460333,-395.53037,0.00022,7]
[385196315,1757681460343,-395.53037,0.00022,7]
[385196316,1757681460353,-151.0,0.00022,7]
[385196317,1757681460362,-151.0,0.00022,7]
[385196318,1757681460372,-151.0,0.00022,7]
[385196319,1757681460382,-151.0,0.00022,7]
[385196320,1757681460392,-151.0,0.00022,7]
[385196321,1757681460401,-151.0,0.00022,7]
[385196322,1757681460413,-151.0,0.00022,7]
[385196323,1757681460423,-163.80866,0.00022,7]
[385196324,1757681460432,-163.80866,0.00022,7]
[385196325,1757681460442,-163.80866,0.00022,7]
[385196326,1757681460452,-151.0,0.00022,7]
[385196327,1757681460462,-163.80866,0.00022,7]
[385196328,1757681460472,-151.0,0.00022,7]
[385196329,1757681460481,-151.0,0.00022,7]
[385196330,1757681460494,-151.0,0.00022,7]
[385196331,1757681460504,-151.0,0.00022,7]
[385196332,1757681460514,-151.0,0.00022,7]
[385196333,1757681460524,-531.04384426,0.00022,7]
[385196334,1757681460533,-1066.17,0.000222,7]
[385196335,1757681460544,-1941.80269697,0.00022297,2]
[385196336,1757681460555,-1000.0,0.00022459,20]
[385196337,1757681460564,-492.0,0.00022459,20]
[385196338,1757681460574,-1941.80269697,0.00022696,2]
[385196339,1757681460584,-1941.80269697,0.00023095,2]
[385196340,1757681460593,-1018.21,0.00023287,2]
[385196341,1757681460603,-167.931,0.00023366,3]
[385196342,1757681460612,-1941.80269697,0.00023495,2]
[385196343,1757681460622,-1941.80269697,0.00023894,2]
[385196344,1757681460631,-217.7145751,0.00024,7]
[385196345,1757681460640,-233.13074058,0.00024,7]
[385196346,1757681460650,-847.0429734,0.00024,7]
[385196347,1757681460660,-1941.80269697,0.00024294,2]
[385196348,1757681460746,-151.0,0.00024473,2]
[385196349,1757681460756,-18603.8837,0.00024473,2]
[385196350,1757681460766,-151.0,0.00024473,2]
[385196351,1757681460775,-151.0,0.00024473,2]
[385196352,1757681460785,-151.0,0.00024473,2]
[385196353,1757681460794,-26207.1730078,0.00024568,2]
[385196354,1757681460806,-457.14271682,0.000246,2]
[385196355,1757681460816,-430.85220611,0.00024606,2]
[385196356,1757681460825,-1722.26841019,0.00024606,2]
[385196357,1757681460834,-300.6401598,0.00024658,2]
[385196358,1757681460843,-151.0,0.00024658,7]
[385196359,1757681460853,-151.0,0.00024658,7]
[385196360,1757681460862,-151.0,0.00024658,7]
[385196361,1757681460872,-1941.80269697,0.00024693,2]
[385196362,1757681460881,-3219.59,0.000247,7]
[385196363,1757681460891,-98918.45,0.000247,7]
[385196364,1757681460900,-151.0,0.000247,7]
[385196365,1757681460910,-952.62287112,0.000247,2]
[385196366,1757681461020,-2185.99825281,0.000247,2]
[385196367,1757681462060,-409.0,0.00020894,2]
[385196368,1757681462070,-409.0,0.00023894,2]
[385196369,1757681462080,-132.91864645,0.000247,2]
[385196370,1757681462090,-1000.0,0.00024704,20]
[385196371,1757681462100,-791.0,0.00024704,20]
[385196372,1757681462109,-151.0,0.000248,7]
[385196373,1757681462118,-151.0,0.000248,7]
[385196374,1757681462128,-151.0,0.000248,7]
[385196375,1757681462137,-151.0,0.000248,7]
[385196376,1757681462146,-238.067544,0.000248,7]
[385196377,1757681462156,-151.0,0.000248,7]
[385196378,1757681462165,-151.0,0.000248,7]
[385196379,1757681462174,-158.140728,0.000248,7]
[385196380,1757681462183,-151.0,0.000248,7]
[385196381,1757681462192,-151.0,0.000248,7]
[385196382,1757681462202,-151.0,0.000248,7]
[385196383,1757681462211,-151.0,0.000248,7]
[385196384,1757681462220,-151.0,0.000248,7]
[385196385,1757681462230,-151.0,0.000248,7]
[385196386,1757681462239,-151.0,0.000248,7]
[385196387,1757681462248,-151.0,0.000248,7]
[385196388,1757681462257,-151.0,0.000248,7]
[385196389,1757681462267,-242.718032,0.000248,7]
[385196390,1757681462276,-242.718032,0.000248,7]
[385196391,1757681462286,-242.718032,0.000248,7]
[385196392,1757681462295,-242.718032,0.000248,7]
[385196393,1757681462306,-151.0,0.000248,7]
[385196394,1757681462314,-278.673816,0.000248,7]
[385196395,1757681462323,-151.0,0.000248,7]
[385196396,1757681462331,-158.271196,0.000248,7]
[385196397,1757681462340,-151.0,0.000248,7]
[385196398,1757681462348,-151.0,0.000248,7]
[385196399,1757681462357,-151.0,0.000248,7]
[385196400,1757681462365,-280.353867,0.000248,7]
[385196401,1757681462374,-151.0,0.000248,7]
[385196402,1757681462384,-151.0,0.000248,7]
[385196403,1757681462396,-163.80866,0.000248,7]
[385196404,1757681462406,-163.80866,0.000248,7]
[385196405,1757681462416,-163.80866,0.000248,7]
[385196406,1757681462432,-163.80866,0.000248,7]
[385196407,1757681462447,-501.08556661,0.00024873,2]
[385196408,1757681462456,-500.0,0.00024873,2]
[385196409,1757681462466,-2018.74422146,0.000249,2]
[385196410,1757681462476,-1066.17,0.000249,7]
[385196411,1757681462486,-152.734877,0.000249,7]
[385196412,1757681462496,-151.0,0.000249,7]
[385196413,1757681462507,-151.0,0.000249,7]
[385196414,1757681462516,-151.0,0.000249,7]
[385196415,1757681462526,-151.0,0.000249,7]
[385196416,1757681462535,-170.107706,0.000249,7]
[385196417,1757681462545,-151.0,0.000249,7]
[385196418,1757681462557,-151.0,0.000249,7]
[385196419,1757681462567,-151.0,0.000249,7]
[385196420,1757681462576,-177.311556,0.000249,7]
[385196421,1757681462585,-151.0,0.000249,7]
[385196422,1757681462594,-206.434057,0.000249,7]
[385196423,1757681462603,-151.0,0.000249,7]
[385196424,1757681462612,-151.0,0.000249,7]
[385196425,1757681462622,-151.0,0.000249,7]
[385196426,1757681462631,-151.0,0.000249,7]
[385196427,1757681462641,-151.0,0.000249,7]
[385196428,1757681462650,-151.0,0.000249,7]
[385196429,1757681462659,-225.104764,0.000249,7]
[385196430,1757681462669,-151.0,0.000249,2]
[385196431,1757681462678,-151.0,0.000249,7]
[385196432,1757681462687,-151.0,0.000249,7]
[385196433,1757681462697,-151.0,0.000249,7]
[385196434,1757681462706,-151.0,0.000249,7]
[385196435,1757681462715,-151.0,0.000249,7]
[385196436,1757681462724,-151.0,0.000249,7]
[385196437,1757681462734,-151.0,0.000249,7]
[385196438,1757681462743,-151.0,0.000249,7]
[385196439,1757681462752,-151.0,0.000249,7]
[385196440,1757681462761,-151.0,0.000249,7]
[385196441,1757681462771,-151.0,0.000249,7]
[385196442,1757681462780,-205.932548,0.000249,7]
[385196443,1757681462788,-186.73505,0.000249,7]
[385196444,1757681462799,-151.0,0.000249,7]
[385196445,1757681462808,-151.0,0.000249,7]
[385196446,1757681462817,-151.0,0.000249,7]
[385196447,1757681462827,-242.718032,0.000249,7]
[385196448,1757681462837,-242.718032,0.000249,7]
[385196449,1757681462846,-242.718032,0.000249,7]
[385196450,1757681462856,-242.718032,0.000249,7]
[385196451,1757681462865,-600688.564656,0.000249,2]
[385196452,1757681462875,-151.0,0.000249,7]
[385196453,1757681462883,-151.0,0.000249,7]
[385196454,1757681462893,-151.0,0.000249,7]
[385196455,1757681462902,-151.0,0.000249,7]
[385196456,1757681462911,-7361.16657703,0.00025,7]
[385196457,1757681462924,-647.08342297,0.00025,7]
[385196458,1757681462933,-457.14271674,0.00025022,2]
[385196459,1757681462942,-153.188836,0.00025041,2]
[385196460,1757681462951,-1941.80269697,0.00025092,2]
[385196461,1757681462961,-2200.0,0.00025149,2]
[385196462,1757681462970,-160.0,0.0002518,3]
[385196463,1757681462980,-250.0,0.00025205,2]
[385196464,1757681462989,-1000.0,0.00025421,2]
[385196465,1757681462998,-457.14271674,0.00025444,2]
[385196466,1757681463007,-1941.80269697,0.00025492,3]
[385196467,1757681463018,-500.0,0.00025516,9]
[385196468,1757681463027,-500.0,0.00025604,9]
[385196469,1757681463038,-350.0,0.00025753,2]
[385196470,1757681463049,-157.0,0.00025754,2]
[385196471,1757681463060,-157.0,0.00025754,2]
[385196472,1757681463070,-157.0,0.00025754,2]
[385196473,1757681463079,-166.0,0.00025754,2]
[385196474,1757681463089,-157.0,0.00025754,2]
[385196475,1757681463099,-157.0,0.00025754,2]
[385196476,1757681463109,-235.45507903,0.00025754,2]
[385196477,1757681463118,-500.0,0.00025754,2]
[385196478,1757681463127,-531.0,0.00025754,2]
[385196479,1757681463137,-151.86,0.00025755,7]
[385196480,1757681463147,-1206.75,0.00025755,7]
[385196481,1757681463156,-151.86,0.00025855,7]
[385196482,1757681463166,-1206.75,0.00025855,7]
[385196483,1757681463248,-457.14271674,0.00025866,2]
[385196484,1757681463258,-1941.80269697,0.00025891,4]
[385196485,1757681463268,-151.86,0.00025955,7]
[385196486,1757681463277,-1206.75,0.00025955,7]
[385196487,1757681463286,-30000.0,0.00026,30]
[385196488,1757681463296,-3219.59,0.00026,7]
[385196489,1757681463308,-98918.45,0.00026,7]
[385196490,1757681463318,-217.7145751,0.00026,30]
[385196491,1757681463327,-233.13074058,0.00026,30]
[385196492,1757681463337,-847.0429734,0.00026,30]
[385196493,1757681463347,-2072.76,0.00026025,2]
[385196494,1757681463358,-1018.21,0.00026027,4]
[385196495,1757681463367,-500.0,0.00026028,2]
[385196496,1757681463376,-531.0,0.00026028,2]
[385196497,1757681463384,-151.86,0.00026055,7]
[385196498,1757681463393,-1206.75,0.00026055,7]
[385196499,1757681463401,-1066.17,0.000261,7]
[385196500,1757681463409,-151.86,0.00026155,7]
[385196501,1757681463421,-1206.75,0.00026155,7]
[385196502,1757681463431,-649.0,0.000262,2]
[385196503,1757681463441,-2200.0,0.00026245,2]
[385196504,1757681463450,-151.86,0.00026255,7]
[385196505,1757681463459,-1206.75,0.00026255,7]
[385196506,1757681463469,-457.14271674,0.00026288,2]
[385196507,1757681463479,-1941.80269697,0.00026291,5]
[385196508,1757681463489,-8008.25,0.000263,7]
[385196509,1757681463499,-450.0,0.00026301,2]
[385196510,1757681463509,-500.0,0.00026302,2]
[385196511,1757681463518,-531.0,0.00026302,2]
[385196512,1757681463527,-151.86,0.00026355,7]
[385196513,1757681463537,-1206.75,0.00026355,7]
[385196514,1757681463546,-151.86,0.00026455,7]
[385196515,1757681463558,-1206.75,0.00026455,7]
[385196516,1757681463567,-201.38465714,0.000265,2]
[385196517,1757681463577,-500.0,0.00026509,2]
[385196518,1757681463587,-1100.0,0.00026548,2]
[385196519,1757681463597,-151.86,0.00026555,7]
[385196520,1757681463607,-1206.75,0.00026555,7]
[385196521,1757681463617,-500.0,0.00026576,2]
[385196522,1757681463626,-531.0,0.00026576,2]
[385196523,1757681463636,-500.0,0.00026613,2]
[385196524,1757681463645,-1100.0,0.00026624,2]
[385196525,1757681463654,-500.0,0.00026632,2]
[385196526,1757681463664,-151.86,0.00026655,7]
[385196527,1757681463674,-1206.75,0.00026655,7]
[385196528,1757681463684,-1100.0,0.00026665,2]
[385196529,1757681463694,-500.0,0.00026673,2]
[385196530,1757681463703,-936.424658,0.00026676,2]
[385196531,1757681463712,-500.0,0.00026687,2]
[385196532,1757681463722,-1100.0,0.00026687,2]
[385196533,1757681463732,-1941.80269697,0.0002669,6]
[385196534,1757681463741,-457.14271674,0.0002671,2]
[385196535,1757681463751,-208.0,0.0002673,2]
[385196536,1757681463760,-1100.0,0.00026752,2]
[385196537,1757681463783,-151.86,0.00026755,7]
[385196538,1757681463801,-1206.75,0.00026755,7]
[385196539,1757681463820,-1100.0,0.00026784,2]
[385196540,1757681463841,-500.0,0.00026848,2]
[385196541,1757681463860,-500.0,0.00026849,2]
[385196542,1757681463878,-603.09119509,0.00026849,2]
[385196543,1757681463897,-500.0,0.0002685,2]
[385196544,1757681463914,-531.0,0.0002685,2]
[385196545,1757681463932,-151.86,0.00026855,7]
[385196546,1757681463951,-1206.75,0.00026855,7]
[385196547,1757681463971,-409.0,0.00026894,2]
[385196548,1757681463983,-500.0,0.00026907,2]
[385196549,1757681464004,-1000.0,0.00026929,5]
[385196550,1757681464018,-1100.0,0.00026955,2]
[385196551,1757681464035,-151.86,0.00026955,7]
[385196552,1757681464050,-1206.75,0.00026955,7]
[385196553,1757681464066,-1100.0,0.00026956,2]
[385196554,1757681464080,-500.0,0.00026983,2]
[385196555,1757681464096,-1100.0,0.00026996,2]
[385196556,1757681464110,-499.3,0.00026997,2]
[385196557,1757681464126,-151.86,0.00027055,7]
[385196558,1757681464141,-1206.75,0.00027055,7]
[385196559,1757681464156,-1941.80269697,0.0002709,6]
[385196560,1757681464167,-152.22222557,0.0002712,2]
[385196561,1757681464177,-1001.3844099,0.00027123,3]
[385196562,1757681464187,-244.0,0.00027124,2]
[385196563,1757681464196,-531.0,0.00027124,2]
[385196564,1757681464209,-155.26667007,0.00027125,2]
[385196565,1757681464219,-173.59676307,0.00027125,2]
[385196566,1757681464229,-1424.66331159,0.00027125,2]
[385196567,1757681464239,-457.14271674,0.00027132,2]
[385196568,1757681464250,-151.86,0.00027155,7]
[385196569,1757681464259,-1206.75,0.00027155,7]
[385196570,1757681464268,-1000.0,0.00027175,20]
[385196571,1757681464278,-1000.0,0.00027175,20]
[385196572,1757681464287,-152.22222557,0.0002722,2]
[385196573,1757681464297,-155.26667007,0.00027225,2]
[385196574,1757681464308,-173.59676307,0.00027225,2]
[385196575,1757681464318,-1424.66331159,0.00027225,2]
[385196576,1757681464327,-1100.0,0.00027232,2]
[385196577,1757681464337,-151.86,0.00027255,7]
[385196578,1757681464346,-1206.75,0.00027255,7]
[385196579,1757681464356,-1100.0,0.0002727,2]
[385196580,1757681464365,-500.0,0.00027278,2]
[385196581,1757681464374,-500.0,0.00027289,2]
[385196582,1757681464384,-208.0,0.000273,2]
[385196583,1757681464394,-3219.59,0.000273,7]
[385196584,1757681464403,-98918.45,0.000273,7]
[385196585,1757681464413,-152.22222557,0.0002732,2]
[385196586,1757681464425,-155.26667007,0.00027325,2]
[385196587,1757681464434,-173.59676307,0.00027325,2]
[385196588,1757681464444,-1424.66331159,0.00027325,2]
[385196589,1757681464455,-500.0,0.00027336,2]
[385196590,1757681464681,-500.0,0.00027339,2]
[385196591,1757681464696,-2200.0,0.00027341,2]
[385196592,1757681464707,-151.86,0.00027355,7]
[385196593,1757681464716,-1206.75,0.00027355,7]
[385196594,1757681464725,-151.0,0.00027397,7]
[385196595,1757681464735,-151.0,0.00027397,7]
[385196596,1757681464744,-657.05,0.00027397,7]
[385196597,1757681464754,-657.05,0.00027397,7]
[385196598,1757681464764,-657.05,0.00027397,7]
[385196599,1757681464774,-657.05,0.00027397,7]
[385196600,1757681464783,-657.05,0.00027397,7]
[385196601,1757681464792,-657.05,0.00027397,7]
[385196602,1757681464804,-657.05,0.00027397,7]
[385196603,1757681464813,-657.05,0.00027397,7]
[385196604,1757681464822,-657.05,0.00027397,7]
[385196605,1757681464832,-657.05,0.00027397,7]
[385196606,1757681464842,-657.05,0.00027397,7]
[385196607,1757681464851,-657.05,0.00027397,7]
[385196608,1757681464861,-657.05,0.00027397,7]
[385196609,1757681464870,-657.05,0.00027397,7]
[385196610,1757681464880,-480.0,0.00027397,2]
[385196611,1757681464889,-657.05,0.00027397,7]
[385196612,1757681464899,-480.0,0.00027397,2]
[385196613,1757681464908,-657.05,0.00027397,7]
[385196614,1757681464917,-480.0,0.00027397,2]
[385196615,1757681464926,-657.05,0.00027397,7]
[385196616,1757681464936,-608.08009932,0.00027397,2]
[385196617,1757681464946,-657.05,0.00027397,7]
[385196618,1757681464955,-657.05,0.00027397,7]
[385196619,1757681464965,-657.05,0.00027397,7]
[385196620,1757681464974,-657.05,0.00027397,7]
[385196621,1757681464983,-657.05,0.00027397,7]
[385196622,1757681464993,-657.05,0.00027397,7]
[385196623,1757681465002,-657.19036844,0.00027397,7]
[385196624,1757681465011,-1180.35972522,0.00027397,30]
[385196625,1757681465021,-1000.0,0.00027397,7]
[385196626,1757681465030,-279.15225839,0.00027397,2]
[385196627,1757681465039,-1000.0,0.00027397,7]
[385196628,1757681465051,-1000.0,0.00027397,7]
[385196629,1757681465060,-1000.0,0.00027397,7]
[385196630,1757681465069,-500.0,0.00027397,5]
[385196631,1757681465078,-531.0,0.00027398,2]
[385196632,1757681465088,-1066.17,0.000274,7]
[385196633,1757681465097,-151.0,0.000274,7]
[385196634,1757681465107,-152.22222557,0.0002742,2]
[385196635,1757681465116,-155.26667007,0.00027425,2]
[385196636,1757681465125,-173.59676307,0.00027425,2]
[385196637,1757681465134,-1424.66331159,0.00027425,2]
[385196638,1757681465143,-500.0,0.00027426,2]
[385196639,1757681465155,-500.0,0.00027437,120]
[385196640,1757681465164,-219.43,0.00027437,120]
[385196641,1757681465174,-500.0,0.00027438,2]
[385196642,1757681465183,-511.81222277,0.00027453,2]
[385196643,1757681465192,-151.9106156,0.00027455,15]
[385196644,1757681465202,-1206.75,0.00027455,15]
[385196645,1757681465213,-1941.80269697,0.00027489,7]
[385196646,1757681465223,-500.0,0.0002749,5]
[385196647,1757681465233,-200.0,0.000275,120]
[385196648,1757681465242,-1100.0,0.00027518,2]
[385196649,1757681465252,-152.22222557,0.0002752,2]
[385196650,1757681465261,-500.0,0.0002752,5]
[385196651,1757681465270,-500.0,0.0002752,20]
[385196652,1757681465279,-500.0,0.0002752,5]
[385196653,1757681465289,-500.0,0.0002752,5]
[385196654,1757681465300,-500.0,0.0002752,20]
[385196655,1757681465310,-500.0,0.0002752,5]
[385196656,1757681465319,-500.0,0.0002752,20]
[385196657,1757681465329,-500.0,0.0002752,5]
[385196658,1757681465338,-500.0,0.0002752,5]